[Event "Titled Tuesday Blitz June 8 2021"]
[White "Kazakouski, Valery"]
[Black "Vlassov, Nikolai"]
[WhiteFideId "13507443"]
[BlackFideId "4103360"]
[WhiteElo "2546"]
[BlackElo "2407"]
[Result "1-0"]
[Round "08"]
[TimeControl "180+1"]
[Date "2021.06.08"]
[WhiteClock "0:00:57"]
[BlackClock "0:00:03"]

1. d4 {[%clk 0:03:00]}  Nf6 {[%clk 0:02:59]} 2. Nf3 {[%clk 0:03:01]}  e6 {[%clk 0:02:59]} 3. c4 {[%clk 0:03:01]}  Nc6 {[%clk 0:02:59]} 4. g3 {[%clk 0:03:01]}  Bb4+ {[%clk 0:02:59]} 5. Bd2 {[%clk 0:03:01]}  a5 {[%clk 0:02:59]} 6. Bg2 {[%clk 0:03:01]}  d6 {[%clk 0:02:59]} 7. O-O {[%clk 0:03:01]}  e5 {[%clk 0:02:59]} 8. Be3 {[%clk 0:03:02]}  exd4 {[%clk 0:02:50]} 9. Nxd4 {[%clk 0:03:02]}  Bd7 {[%clk 0:02:50]} 10. Nc2 {[%clk 0:03:01]}  O-O {[%clk 0:02:44]} 11. a3 {[%clk 0:03:01]}  Bc5 {[%clk 0:02:44]} 12. Bxc5 {[%clk 0:02:58]}  dxc5 {[%clk 0:02:43]} 13. Nc3 {[%clk 0:02:59]}  Re8 {[%clk 0:02:25]} 14. Nd5 {[%clk 0:02:46]}  Ne5 {[%clk 0:02:17]} 15. Nce3 {[%clk 0:02:39]}  Nfg4 {[%clk 0:02:06]} 16. h3 {[%clk 0:02:25]}  Nxe3 {[%clk 0:02:01]} 17. Nxe3 {[%clk 0:02:26]}  Bc6 {[%clk 0:02:00]} 18. Qxd8 {[%clk 0:02:16]}  Raxd8 {[%clk 0:01:59]} 19. Rfd1 {[%clk 0:02:09]}  Rd4 {[%clk 0:01:56]} 20. Bxc6 {[%clk 0:01:59]}  Nxc6 {[%clk 0:01:54]} 21. a4 {[%clk 0:01:55]}  Red8 {[%clk 0:01:47]} 22. Kf1 {[%clk 0:01:49]}  Ne5 {[%clk 0:01:40]} 23. b3 {[%clk 0:01:47]}  c6 {[%clk 0:01:32]} 24. Ke1 {[%clk 0:01:44]}  g6 {[%clk 0:01:29]} 25. Nc2 {[%clk 0:01:21]}  Rxd1+ {[%clk 0:01:28]} 26. Rxd1 {[%clk 0:01:22]}  Rxd1+ {[%clk 0:01:28]} 27. Kxd1 {[%clk 0:01:23]}  f5 {[%clk 0:01:28]} 28. Ne1 {[%clk 0:01:19]}  Kf7 {[%clk 0:01:28]} 29. Kd2 {[%clk 0:01:20]}  Ke6 {[%clk 0:01:25]} 30. Nd3 {[%clk 0:01:20]}  Nxd3 {[%clk 0:01:15]} 31. Kxd3 {[%clk 0:01:18]}  Ke5 {[%clk 0:00:41]} 32. e3 {[%clk 0:01:14]}  h6 {[%clk 0:00:26]} 33. f3 {[%clk 0:01:11]}  g5 {[%clk 0:00:24]} 34. f4+ {[%clk 0:01:10]}  gxf4 {[%clk 0:00:16]} 35. exf4+ {[%clk 0:01:10]}  Kf6 {[%clk 0:00:15]} 36. g4 {[%clk 0:01:10]}  h5 {[%clk 0:00:14]} 37. gxf5 {[%clk 0:00:56]}  Kxf5 {[%clk 0:00:14]} 38. Ke3 {[%clk 0:00:56]}  h4 {[%clk 0:00:03]} 39. Kf3 {[%clk 0:00:56]}  Ke6 {[%clk 0:00:03]} 40. Ke4 {[%clk 0:00:57]} 1-0


[Site "https://www.chess.com"]

[Event "Titled Tuesday Blitz June 8 2021"]
[White "Kollars, Dmitrij"]
[Black "Jobava, Baadur"]
[WhiteFideId "12909572"]
[BlackFideId "13601520"]
[WhiteElo "2576"]
[BlackElo "2748"]
[Result "0-1"]
[Round "08"]
[TimeControl "180+1"]
[Date "2021.06.08"]
[WhiteClock "0:00:02"]
[BlackClock "0:00:43"]

1. e4 {[%clk 0:03:00]}  c6 {[%clk 0:02:56]} 2. d4 {[%clk 0:03:00]}  d5 {[%clk 0:02:57]} 3. e5 {[%clk 0:03:00]}  Bf5 {[%clk 0:02:57]} 4. Nf3 {[%clk 0:02:54]}  e6 {[%clk 0:02:56]} 5. Be2 {[%clk 0:02:55]}  Nd7 {[%clk 0:02:56]} 6. O-O {[%clk 0:02:54]}  f6 {[%clk 0:02:57]} 7. c4 {[%clk 0:02:47]}  fxe5 {[%clk 0:02:56]} 8. dxe5 {[%clk 0:02:48]}  Bc5 {[%clk 0:02:55]} 9. cxd5 {[%clk 0:02:47]}  cxd5 {[%clk 0:02:55]} 10. Nd4 {[%clk 0:02:41]}  Ne7 {[%clk 0:02:53]} 11. Be3 {[%clk 0:02:08]}  O-O {[%clk 0:02:47]} 12. Nc3 {[%clk 0:02:07]}  Rc8 {[%clk 0:02:45]} 13. f4 {[%clk 0:02:02]}  Bxd4 {[%clk 0:02:19]} 14. Bxd4 {[%clk 0:02:03]}  Nc6 {[%clk 0:02:19]} 15. Nb5 {[%clk 0:01:50]}  Nxd4 {[%clk 0:02:16]} 16. Qxd4 {[%clk 0:01:51]}  Rc2 {[%clk 0:02:08]} 17. Rf2 {[%clk 0:01:35]}  Nc5 {[%clk 0:01:56]} 18. Nd6 {[%clk 0:01:16]}  Qb6 {[%clk 0:01:49]} 19. Nxf5 {[%clk 0:01:06]}  Rxf5 {[%clk 0:01:50]} 20. Bg4 {[%clk 0:01:06]}  Rxf2 {[%clk 0:01:50]} 21. Qxf2 {[%clk 0:01:07]}  Rxf4 {[%clk 0:01:48]} 22. Bf3 {[%clk 0:00:42]}  Nd3 {[%clk 0:01:41]} 23. Qxb6 {[%clk 0:00:42]}  axb6 {[%clk 0:01:42]} 24. Be2 {[%clk 0:00:32]}  Nxe5 {[%clk 0:01:35]} 25. Rc1 {[%clk 0:00:31]}  Nc6 {[%clk 0:01:34]} 26. Bb5 {[%clk 0:00:27]}  Rf7 {[%clk 0:01:13]} 27. Rc3 {[%clk 0:00:20]}  Rc7 {[%clk 0:01:10]} 28. Ba4 {[%clk 0:00:13]}  Kf7 {[%clk 0:01:06]} 29. Rb3 {[%clk 0:00:13]}  e5 {[%clk 0:00:57]} 30. Rxb6 {[%clk 0:00:13]}  Ke6 {[%clk 0:00:53]} 31. b4 {[%clk 0:00:13]}  Kf5 {[%clk 0:00:53]} 32. Bxc6 {[%clk 0:00:09]}  Rxc6 {[%clk 0:00:51]} 33. Rxb7 {[%clk 0:00:03]}  Rc1+ {[%clk 0:00:50]} 34. Kf2 {[%clk 0:00:04]}  Rc2+ {[%clk 0:00:51]} 35. Kg3 {[%clk 0:00:04]}  Rxa2 {[%clk 0:00:51]} 36. Rxg7 {[%clk 0:00:03]}  d4 {[%clk 0:00:51]} 37. b5 {[%clk 0:00:01]}  Rb2 {[%clk 0:00:50]} 38. Rxh7 {[%clk 0:00:01]}  Rxb5 {[%clk 0:00:48]} 39. Rd7 {[%clk 0:00:01]}  Rb3+ {[%clk 0:00:47]} 40. Kf2 {[%clk 0:00:02]}  Rb2+ {[%clk 0:00:47]} 41. Kg3 {[%clk 0:00:02]}  Rd2 {[%clk 0:00:46]} 42. h4 {[%clk 0:00:02]}  e4 {[%clk 0:00:47]} 43. h5 {[%clk 0:00:01]}  Kg5 {[%clk 0:00:46]} 44. Rd5+ {[%clk 0:00:01]}  Kh6 {[%clk 0:00:46]} 45. Kh4 {[%clk 0:00:02]}  e3 {[%clk 0:00:44]} 46. Rd6+ {[%clk 0:00:02]}  Kh7 {[%clk 0:00:43]} 47. Rd7+ {[%clk 0:00:02]}  Kg8 {[%clk 0:00:43]} 0-1


[Site "https://www.chess.com"]

[Event "Titled Tuesday Blitz June 8 2021"]
[White "Kukhmazov, Arsen"]
[Black "Sadykov, Ramil"]
[WhiteFideId "24108260"]
[BlackFideId "24113590"]
[WhiteElo "2453"]
[BlackElo "2300"]
[Result "1-0"]
[Round "08"]
[TimeControl "180+1"]
[Date "2021.06.08"]
[WhiteClock "0:00:12"]
[BlackClock "0:00:03"]

1. d4 {[%clk 0:03:00]}  d5 {[%clk 0:02:59]} 2. c4 {[%clk 0:03:01]}  e6 {[%clk 0:02:58]} 3. Nc3 {[%clk 0:03:00]}  Nf6 {[%clk 0:02:53]} 4. cxd5 {[%clk 0:02:55]}  exd5 {[%clk 0:02:54]} 5. Bg5 {[%clk 0:02:55]}  c6 {[%clk 0:02:54]} 6. e3 {[%clk 0:02:56]}  Be7 {[%clk 0:02:52]} 7. Qc2 {[%clk 0:02:56]}  Nbd7 {[%clk 0:02:48]} 8. Bd3 {[%clk 0:02:56]}  O-O {[%clk 0:02:29]} 9. Nge2 {[%clk 0:02:54]}  Re8 {[%clk 0:02:26]} 10. O-O {[%clk 0:02:53]}  Nf8 {[%clk 0:02:04]} 11. Rad1 {[%clk 0:02:52]}  g6 {[%clk 0:01:59]} 12. f3 {[%clk 0:02:36]}  Ne6 {[%clk 0:01:56]} 13. Bh4 {[%clk 0:02:36]}  b6 {[%clk 0:01:37]} 14. Bf2 {[%clk 0:02:32]}  Bb7 {[%clk 0:01:34]} 15. h3 {[%clk 0:02:31]}  c5 {[%clk 0:01:30]} 16. Bb5 {[%clk 0:02:31]}  Rf8 {[%clk 0:01:26]} 17. dxc5 {[%clk 0:02:24]}  bxc5 {[%clk 0:01:16]} 18. Bc4 {[%clk 0:02:21]}  Rc8 {[%clk 0:00:59]} 19. Qb3 {[%clk 0:02:12]}  dxc4 {[%clk 0:00:54]} 20. Qxb7 {[%clk 0:02:11]}  Qc7 {[%clk 0:00:52]} 21. Qxc7 {[%clk 0:02:06]}  Rxc7 {[%clk 0:00:46]} 22. e4 {[%clk 0:02:06]}  Rb7 {[%clk 0:00:44]} 23. Na4 {[%clk 0:01:46]}  Nd7 {[%clk 0:00:39]} 24. Bg3 {[%clk 0:01:37]}  Nb6 {[%clk 0:00:37]} 25. Nac3 {[%clk 0:01:34]}  Bf6 {[%clk 0:00:36]} 26. e5 {[%clk 0:01:32]}  Bg5 {[%clk 0:00:34]} 27. f4 {[%clk 0:01:32]}  Be7 {[%clk 0:00:34]} 28. Rd2 {[%clk 0:01:31]}  Nd4 {[%clk 0:00:28]} 29. Bf2 {[%clk 0:01:27]}  Nxe2+ {[%clk 0:00:26]} 30. Rxe2 {[%clk 0:01:28]}  Rd8 {[%clk 0:00:24]} 31. Rc1 {[%clk 0:01:27]}  f5 {[%clk 0:00:16]} 32. Rcc2 {[%clk 0:01:19]}  Kf7 {[%clk 0:00:16]} 33. e6+ {[%clk 0:01:16]}  Kg7 {[%clk 0:00:14]} 34. g4 {[%clk 0:01:16]}  h6 {[%clk 0:00:11]} 35. Re5 {[%clk 0:01:10]}  Bf6 {[%clk 0:00:09]} 36. Rxc5 {[%clk 0:01:10]}  Re7 {[%clk 0:00:07]} 37. Re2 {[%clk 0:01:03]}  Rde8 {[%clk 0:00:06]} 38. gxf5 {[%clk 0:01:02]}  gxf5 {[%clk 0:00:07]} 39. Rc6 {[%clk 0:00:56]}  Bxc3 {[%clk 0:00:05]} 40. bxc3 {[%clk 0:00:57]}  Nd5 {[%clk 0:00:06]} 41. Bd4+ {[%clk 0:00:57]}  Kg6 {[%clk 0:00:06]} 42. Rg2+ {[%clk 0:00:34]}  Kh5 {[%clk 0:00:06]} 43. Be5 {[%clk 0:00:34]}  Rxe6 {[%clk 0:00:05]} 44. Rc5 {[%clk 0:00:33]}  Ne3 {[%clk 0:00:05]} 45. Rd2 {[%clk 0:00:19]}  Rg8+ {[%clk 0:00:05]} 46. Kf2 {[%clk 0:00:20]}  Ng2 {[%clk 0:00:05]} 47. Rd6 {[%clk 0:00:05]}  Rxd6 {[%clk 0:00:05]} 48. Bxd6 {[%clk 0:00:06]}  Nh4 {[%clk 0:00:05]} 49. Rxc4 {[%clk 0:00:06]}  Rg2+ {[%clk 0:00:06]} 50. Ke3 {[%clk 0:00:07]}  Rxa2 {[%clk 0:00:06]} 51. Rc7 {[%clk 0:00:05]}  Rh2 {[%clk 0:00:06]} 52. c4 {[%clk 0:00:05]}  Rxh3+ {[%clk 0:00:06]} 53. Kd4 {[%clk 0:00:06]}  Rh1 {[%clk 0:00:06]} 54. c5 {[%clk 0:00:06]}  Kg4 {[%clk 0:00:04]} 55. Rg7+ {[%clk 0:00:06]}  Kf3 {[%clk 0:00:04]} 56. Rxa7 {[%clk 0:00:06]}  Rd1+ {[%clk 0:00:03]} 57. Ke5 {[%clk 0:00:06]}  Ng6+ {[%clk 0:00:04]} 58. Kxf5 {[%clk 0:00:07]}  Nh4+ {[%clk 0:00:02]} 59. Ke6 {[%clk 0:00:07]}  h5 {[%clk 0:00:02]} 60. c6 {[%clk 0:00:08]}  Ng6 {[%clk 0:00:02]} 61. f5 {[%clk 0:00:07]}  Nf4+ {[%clk 0:00:02]} 62. Bxf4 {[%clk 0:00:07]}  Kxf4 {[%clk 0:00:03]} 63. c7 {[%clk 0:00:08]}  Rc1 {[%clk 0:00:02]} 64. f6 {[%clk 0:00:09]}  h4 {[%clk 0:00:03]} 65. f7 {[%clk 0:00:09]}  Re1+ {[%clk 0:00:02]} 66. Kd7 {[%clk 0:00:10]}  Kg3 {[%clk 0:00:02]} 67. f8=Q {[%clk 0:00:10]}  Rd1+ {[%clk 0:00:02]} 68. Ke8 {[%clk 0:00:10]}  Re1+ {[%clk 0:00:02]} 69. Kd8 {[%clk 0:00:10]}  Rd1+ {[%clk 0:00:03]} 70. Kc8 {[%clk 0:00:11]}  Rd4 {[%clk 0:00:03]} 71. Ra3+ {[%clk 0:00:11]}  Kg2 {[%clk 0:00:03]} 72. Qg7+ {[%clk 0:00:11]}  Kf2 {[%clk 0:00:03]} 73. Qxd4+ {[%clk 0:00:12]} 1-0


[Site "https://www.chess.com"]

[Event "Titled Tuesday Blitz June 8 2021"]
[White "Lazavik, Denis"]
[Black "Henderson de La Fuente, Lance"]
[WhiteFideId "13515110"]
[BlackFideId "32096585"]
[WhiteElo "2436"]
[BlackElo "2280"]
[Result "1-0"]
[Round "08"]
[TimeControl "180+1"]
[Date "2021.06.08"]
[WhiteClock "0:00:06"]
[BlackClock "0:00:01"]

1. d4 {[%clk 0:03:00]}  Nf6 {[%clk 0:02:59]} 2. c4 {[%clk 0:03:00]}  e6 {[%clk 0:02:59]} 3. Nf3 {[%clk 0:03:00]}  b6 {[%clk 0:02:55]} 4. a3 {[%clk 0:02:57]}  Bb7 {[%clk 0:02:54]} 5. Nc3 {[%clk 0:02:56]}  g6 {[%clk 0:02:52]} 6. Qc2 {[%clk 0:02:54]}  c5 {[%clk 0:02:45]} 7. e4 {[%clk 0:02:41]}  cxd4 {[%clk 0:02:29]} 8. Nxd4 {[%clk 0:02:42]}  Bc5 {[%clk 0:02:17]} 9. Nb3 {[%clk 0:02:31]}  Nc6 {[%clk 0:02:10]} 10. Bf4 {[%clk 0:02:18]}  e5 {[%clk 0:01:56]} 11. Bg5 {[%clk 0:02:16]}  h6 {[%clk 0:01:54]} 12. Bh4 {[%clk 0:01:34]}  g5 {[%clk 0:01:36]} 13. Bg3 {[%clk 0:01:34]}  d6 {[%clk 0:01:32]} 14. O-O-O {[%clk 0:01:29]}  a6 {[%clk 0:01:16]} 15. h4 {[%clk 0:01:24]}  Nh5 {[%clk 0:01:09]} 16. Be2 {[%clk 0:01:04]}  Nf4 {[%clk 0:00:53]} 17. hxg5 {[%clk 0:00:55]}  Qxg5 {[%clk 0:00:51]} 18. Kb1 {[%clk 0:00:54]}  Rc8 {[%clk 0:00:44]} 19. Bxf4 {[%clk 0:00:45]}  exf4 {[%clk 0:00:41]} 20. Nd5 {[%clk 0:00:44]}  Ne5 {[%clk 0:00:31]} 21. Rh5 {[%clk 0:00:43]}  Qxg2 {[%clk 0:00:27]} 22. f3 {[%clk 0:00:20]}  Bxd5 {[%clk 0:00:20]} 23. Rxd5 {[%clk 0:00:19]}  Be3 {[%clk 0:00:20]} 24. Rxd6 {[%clk 0:00:15]}  Nxc4 {[%clk 0:00:15]} 25. Re5+ {[%clk 0:00:10]}  Kf8 {[%clk 0:00:10]} 26. Bxc4 {[%clk 0:00:09]}  Qxc2+ {[%clk 0:00:09]} 27. Kxc2 {[%clk 0:00:10]}  Rxc4+ {[%clk 0:00:09]} 28. Kd3 {[%clk 0:00:11]}  Rc7 {[%clk 0:00:03]} 29. Rh5 {[%clk 0:00:09]}  Kg7 {[%clk 0:00:01]} 30. Nd4 {[%clk 0:00:09]}  Rhc8 {[%clk 0:00:01]} 31. Nf5+ {[%clk 0:00:09]}  Kf8 {[%clk 0:00:02]} 32. Rhxh6 {[%clk 0:00:08]}  Kg8 {[%clk 0:00:02]} 33. Rh1 {[%clk 0:00:05]}  Rc6 {[%clk 0:00:01]} 34. Rxc6 {[%clk 0:00:05]}  Rxc6 {[%clk 0:00:01]} 35. Ne7+ {[%clk 0:00:06]} 1-0


[Site "https://www.chess.com"]

[Event "Titled Tuesday Blitz June 8 2021"]
[White "Lehtosaari, Mauri"]
[Black "Gelman, Alexander"]
[WhiteFideId "501999"]
[BlackFideId "4118316"]
[WhiteElo "2456"]
[BlackElo "2375"]
[Result "0-1"]
[Round "08"]
[TimeControl "180+1"]
[Date "2021.06.08"]
[WhiteClock "0:00:11"]
[BlackClock "0:01:00"]

1. d4 {[%clk 0:03:00]}  c5 {[%clk 0:02:59]} 2. c3 {[%clk 0:02:59]}  Nf6 {[%clk 0:02:58]} 3. Nf3 {[%clk 0:02:59]}  h6 {[%clk 0:02:59]} 4. Bf4 {[%clk 0:02:59]}  b6 {[%clk 0:02:58]} 5. Nbd2 {[%clk 0:02:57]}  Bb7 {[%clk 0:02:59]} 6. e3 {[%clk 0:02:58]}  d6 {[%clk 0:02:59]} 7. h3 {[%clk 0:02:54]}  Nbd7 {[%clk 0:03:00]} 8. a4 {[%clk 0:02:54]}  a6 {[%clk 0:03:00]} 9. Bc4 {[%clk 0:02:52]}  g5 {[%clk 0:03:00]} 10. Bg3 {[%clk 0:02:51]}  Rg8 {[%clk 0:03:00]} 11. Qe2 {[%clk 0:02:50]}  h5 {[%clk 0:02:53]} 12. e4 {[%clk 0:02:46]}  g4 {[%clk 0:02:47]} 13. hxg4 {[%clk 0:02:45]}  hxg4 {[%clk 0:02:48]} 14. Nh4 {[%clk 0:02:32]}  cxd4 {[%clk 0:02:42]} 15. cxd4 {[%clk 0:02:31]}  e6 {[%clk 0:02:42]} 16. d5 {[%clk 0:01:45]}  Qe7 {[%clk 0:02:37]} 17. dxe6 {[%clk 0:01:41]}  fxe6 {[%clk 0:02:37]} 18. b4 {[%clk 0:01:17]}  Nh5 {[%clk 0:02:21]} 19. Rd1 {[%clk 0:01:06]}  Nxg3 {[%clk 0:02:13]} 20. fxg3 {[%clk 0:01:07]}  Ne5 {[%clk 0:02:07]} 21. O-O {[%clk 0:01:03]}  Bh6 {[%clk 0:01:58]} 22. Nf5 {[%clk 0:00:56]}  exf5 {[%clk 0:01:43]} 23. Bxg8 {[%clk 0:00:55]}  Qg5 {[%clk 0:01:08]} 24. Bd5 {[%clk 0:00:37]}  Qe3+ {[%clk 0:01:07]} 25. Qxe3 {[%clk 0:00:35]}  Bxe3+ {[%clk 0:01:08]} 26. Rf2 {[%clk 0:00:22]}  Bxd5 {[%clk 0:01:07]} 27. Kf1 {[%clk 0:00:14]}  Bxf2 {[%clk 0:01:05]} 28. exd5 {[%clk 0:00:14]}  Bxg3 {[%clk 0:01:05]} 29. Nb3 {[%clk 0:00:12]}  Rc8 {[%clk 0:01:03]} 30. Nd4 {[%clk 0:00:12]}  f4 {[%clk 0:01:02]} 31. Nf5 {[%clk 0:00:12]}  Kd7 {[%clk 0:01:01]} 32. Nxg3 {[%clk 0:00:12]}  fxg3 {[%clk 0:01:00]} 33. Rd4 {[%clk 0:00:11]}  Rc4 {[%clk 0:01:00]} 0-1


[Site "https://www.chess.com"]

[Event "Titled Tuesday Blitz June 8 2021"]
[White "Lewtak, Damian"]
[Black "Yoo, Christopher Woojin"]
[WhiteFideId "1141724"]
[BlackFideId "30909694"]
[WhiteElo "2291"]
[BlackElo "2009"]
[Result "1-0"]
[Round "08"]
[TimeControl "180+1"]
[Date "2021.06.08"]
[WhiteClock "0:00:17"]
[BlackClock "0:00:01"]

1. d4 {[%clk 0:03:00]}  Nf6 {[%clk 0:02:48]} 2. Bf4 {[%clk 0:03:00]}  c5 {[%clk 0:02:45]} 3. d5 {[%clk 0:02:56]}  d6 {[%clk 0:02:41]} 4. Nc3 {[%clk 0:02:53]}  a6 {[%clk 0:02:41]} 5. a4 {[%clk 0:02:42]}  e5 {[%clk 0:02:40]} 6. dxe6 {[%clk 0:02:35]}  Bxe6 {[%clk 0:02:40]} 7. e4 {[%clk 0:02:32]}  Nc6 {[%clk 0:02:40]} 8. Nf3 {[%clk 0:02:30]}  Qa5 {[%clk 0:02:32]} 9. Nd2 {[%clk 0:02:18]}  Qb4 {[%clk 0:02:29]} 10. Qc1 {[%clk 0:01:49]}  d5 {[%clk 0:02:19]} 11. exd5 {[%clk 0:01:40]}  Nxd5 {[%clk 0:02:16]} 12. Nxd5 {[%clk 0:01:23]}  Bxd5 {[%clk 0:02:16]} 13. Bc4 {[%clk 0:01:22]}  Rd8 {[%clk 0:01:27]} 14. Bc7 {[%clk 0:01:01]}  Rd7 {[%clk 0:00:48]} 15. c3 {[%clk 0:00:51]}  Re7+ {[%clk 0:00:37]} 16. Kd1 {[%clk 0:00:47]}  Bxc4 {[%clk 0:00:07]} 17. cxb4 {[%clk 0:00:44]}  Be2+ {[%clk 0:00:07]} 18. Kc2 {[%clk 0:00:40]}  Nxb4+ {[%clk 0:00:08]} 19. Kb3 {[%clk 0:00:27]}  Nd3 {[%clk 0:00:01]} 20. Qc3 {[%clk 0:00:20]}  Rxc7 {[%clk 0:00:01]} 21. Nc4 {[%clk 0:00:17]} 1-0


[Site "https://www.chess.com"]

[Event "Titled Tuesday Blitz June 8 2021"]
[White "Makhnev, Denis"]
[Black "Donchenko, Alexander"]
[WhiteFideId "13707647"]
[BlackFideId "24603295"]
[WhiteElo "2549"]
[BlackElo "2553"]
[Result "0-1"]
[Round "08"]
[TimeControl "180+1"]
[Date "2021.06.08"]
[WhiteClock "0:00:11"]
[BlackClock "0:00:05"]

1. c4 {[%clk 0:03:00]}  e5 {[%clk 0:02:59]} 2. Nc3 {[%clk 0:03:00]}  Bb4 {[%clk 0:02:59]} 3. Nd5 {[%clk 0:02:59]}  a5 {[%clk 0:02:59]} 4. g3 {[%clk 0:02:54]}  Ne7 {[%clk 0:02:55]} 5. Bg2 {[%clk 0:02:50]}  Nxd5 {[%clk 0:02:55]} 6. Bxd5 {[%clk 0:02:43]}  O-O {[%clk 0:02:53]} 7. Bg2 {[%clk 0:02:39]}  c6 {[%clk 0:02:52]} 8. Nf3 {[%clk 0:02:37]}  Re8 {[%clk 0:02:48]} 9. O-O {[%clk 0:02:36]}  d5 {[%clk 0:02:49]} 10. cxd5 {[%clk 0:02:36]}  cxd5 {[%clk 0:02:49]} 11. d3 {[%clk 0:02:33]}  Nc6 {[%clk 0:02:49]} 12. Bd2 {[%clk 0:02:31]}  Bf8 {[%clk 0:02:48]} 13. Rc1 {[%clk 0:02:28]}  Qb6 {[%clk 0:02:48]} 14. Qc2 {[%clk 0:02:25]}  h6 {[%clk 0:02:43]} 15. Be3 {[%clk 0:02:23]}  d4 {[%clk 0:02:41]} 16. Bd2 {[%clk 0:02:23]}  Be6 {[%clk 0:02:41]} 17. Qb1 {[%clk 0:02:23]}  Bd5 {[%clk 0:02:34]} 18. Rfe1 {[%clk 0:02:13]}  e4 {[%clk 0:02:30]} 19. dxe4 {[%clk 0:02:11]}  Bxe4 {[%clk 0:02:30]} 20. Qa1 {[%clk 0:02:11]}  Nb4 {[%clk 0:02:24]} 21. Bxb4 {[%clk 0:01:55]}  axb4 {[%clk 0:02:13]} 22. b3 {[%clk 0:01:54]}  d3 {[%clk 0:02:07]} 23. exd3 {[%clk 0:01:53]}  Bxd3 {[%clk 0:02:07]} 24. Rxe8 {[%clk 0:01:52]}  Rxe8 {[%clk 0:02:07]} 25. Qd4 {[%clk 0:01:44]}  Qxd4 {[%clk 0:01:36]} 26. Nxd4 {[%clk 0:01:45]}  b6 {[%clk 0:01:35]} 27. Rd1 {[%clk 0:01:28]}  Bg6 {[%clk 0:01:29]} 28. Bd5 {[%clk 0:01:21]}  Bc5 {[%clk 0:01:24]} 29. Kg2 {[%clk 0:01:13]}  Rd8 {[%clk 0:01:21]} 30. Nf3 {[%clk 0:01:06]}  Kf8 {[%clk 0:01:17]} 31. Rd2 {[%clk 0:01:05]}  Bf5 {[%clk 0:01:07]} 32. Be4 {[%clk 0:01:02]}  Rxd2 {[%clk 0:01:02]} 33. Nxd2 {[%clk 0:01:03]}  Be6 {[%clk 0:01:01]} 34. f4 {[%clk 0:00:57]}  Ke7 {[%clk 0:00:59]} 35. Kf3 {[%clk 0:00:56]}  f5 {[%clk 0:00:59]} 36. Bb7 {[%clk 0:00:55]}  Kf6 {[%clk 0:00:58]} 37. Nc4 {[%clk 0:00:52]}  g5 {[%clk 0:00:57]} 38. h3 {[%clk 0:00:50]}  Bd7 {[%clk 0:00:56]} 39. Bd5 {[%clk 0:00:48]}  Bb5 {[%clk 0:00:55]} 40. g4 {[%clk 0:00:43]}  Bd7 {[%clk 0:00:54]} 41. Ne5 {[%clk 0:00:35]}  Bc8 {[%clk 0:00:50]} 42. Nc4 {[%clk 0:00:33]}  Ba6 {[%clk 0:00:21]} 43. gxf5 {[%clk 0:00:27]}  Kxf5 {[%clk 0:00:20]} 44. Be4+ {[%clk 0:00:26]}  Kf6 {[%clk 0:00:20]} 45. Ne5 {[%clk 0:00:20]}  Bc8 {[%clk 0:00:19]} 46. Ng4+ {[%clk 0:00:17]}  Kg7 {[%clk 0:00:19]} 47. fxg5 {[%clk 0:00:17]}  hxg5 {[%clk 0:00:19]} 48. Kg2 {[%clk 0:00:16]}  Bd4 {[%clk 0:00:19]} 49. Kg3 {[%clk 0:00:15]}  Be6 {[%clk 0:00:18]} 50. Kf3 {[%clk 0:00:15]}  Kf7 {[%clk 0:00:18]} 51. Kg3 {[%clk 0:00:15]}  Ke7 {[%clk 0:00:18]} 52. h4 {[%clk 0:00:15]}  gxh4+ {[%clk 0:00:16]} 53. Kxh4 {[%clk 0:00:15]}  Kd6 {[%clk 0:00:17]} 54. Kg3 {[%clk 0:00:16]}  Kc5 {[%clk 0:00:16]} 55. Kf3 {[%clk 0:00:16]}  Bg7 {[%clk 0:00:10]} 56. Nf2 {[%clk 0:00:13]}  Kd4 {[%clk 0:00:09]} 57. Nd1 {[%clk 0:00:12]}  Bf7 {[%clk 0:00:05]} 58. Bf5 {[%clk 0:00:11]}  Bh5+ {[%clk 0:00:04]} 59. Bg4 {[%clk 0:00:11]}  Bxg4+ {[%clk 0:00:04]} 60. Kxg4 {[%clk 0:00:12]}  Kd3 {[%clk 0:00:05]} 61. Kf3 {[%clk 0:00:12]}  Kc2 {[%clk 0:00:05]} 62. Ke2 {[%clk 0:00:13]}  Bd4 {[%clk 0:00:04]} 63. Ne3+ {[%clk 0:00:10]}  Bxe3 {[%clk 0:00:04]} 64. Kxe3 {[%clk 0:00:11]}  Kb2 {[%clk 0:00:04]} 65. Kd3 {[%clk 0:00:11]}  Kxa2 {[%clk 0:00:05]} 0-1


[Site "https://www.chess.com"]

[Event "Titled Tuesday Blitz June 8 2021"]
[White "Maksimenko, Viktor"]
[Black "Rustemov, Alexander"]
[WhiteFideId "13710478"]
[BlackFideId "4119002"]
[WhiteElo "2269"]
[BlackElo "2703"]
[Result "0-1"]
[Round "08"]
[TimeControl "180+1"]
[Date "2021.06.08"]
[WhiteClock "0:00:07"]
[BlackClock "0:00:56"]

1. d4 {[%clk 0:03:00]}  d5 {[%clk 0:02:56]} 2. c4 {[%clk 0:03:00]}  c6 {[%clk 0:02:55]} 3. Nf3 {[%clk 0:03:00]}  Nf6 {[%clk 0:02:55]} 4. Nc3 {[%clk 0:02:54]}  dxc4 {[%clk 0:02:50]} 5. a4 {[%clk 0:02:53]}  Bf5 {[%clk 0:02:49]} 6. Ne5 {[%clk 0:02:53]}  Nbd7 {[%clk 0:02:48]} 7. Nxc4 {[%clk 0:02:54]}  Nb6 {[%clk 0:02:49]} 8. Ne5 {[%clk 0:02:51]}  a5 {[%clk 0:02:49]} 9. f3 {[%clk 0:02:49]}  Nfd7 {[%clk 0:02:49]} 10. Nxd7 {[%clk 0:02:41]}  Nxd7 {[%clk 0:02:48]} 11. e4 {[%clk 0:02:41]}  Bg6 {[%clk 0:02:48]} 12. Be3 {[%clk 0:02:37]}  e6 {[%clk 0:02:48]} 13. Be2 {[%clk 0:02:35]}  Qb6 {[%clk 0:02:41]} 14. Qd2 {[%clk 0:02:24]}  Rd8 {[%clk 0:02:39]} 15. O-O {[%clk 0:02:18]}  Be7 {[%clk 0:02:38]} 16. Rad1 {[%clk 0:02:15]}  O-O {[%clk 0:02:38]} 17. Kh1 {[%clk 0:02:03]}  Qc7 {[%clk 0:02:34]} 18. Bg1 {[%clk 0:01:56]}  f5 {[%clk 0:02:33]} 19. d5 {[%clk 0:01:31]}  Nc5 {[%clk 0:02:14]} 20. Qe3 {[%clk 0:01:19]}  fxe4 {[%clk 0:02:12]} 21. d6 {[%clk 0:01:09]}  Rxd6 {[%clk 0:02:06]} 22. fxe4 {[%clk 0:00:57]}  Rxd1 {[%clk 0:02:01]} 23. Rxd1 {[%clk 0:00:58]}  e5 {[%clk 0:01:51]} 24. Bc4+ {[%clk 0:00:51]}  Bf7 {[%clk 0:01:51]} 25. Qe2 {[%clk 0:00:52]}  Ne6 {[%clk 0:01:41]} 26. Rf1 {[%clk 0:00:50]}  Nd4 {[%clk 0:01:39]} 27. Bxf7+ {[%clk 0:00:41]}  Rxf7 {[%clk 0:01:39]} 28. Qc4 {[%clk 0:00:41]}  Bf6 {[%clk 0:01:34]} 29. h3 {[%clk 0:00:28]}  h6 {[%clk 0:01:29]} 30. Bh2 {[%clk 0:00:28]}  Qe7 {[%clk 0:01:22]} 31. Bg1 {[%clk 0:00:21]}  Qb4 {[%clk 0:01:19]} 32. Qa2 {[%clk 0:00:20]}  Qb3 {[%clk 0:01:19]} 33. Qb1 {[%clk 0:00:18]}  Rd7 {[%clk 0:01:17]} 34. Qc1 {[%clk 0:00:15]}  Ne6 {[%clk 0:01:13]} 35. Rxf6 {[%clk 0:00:14]}  gxf6 {[%clk 0:01:12]} 36. Qxh6 {[%clk 0:00:14]}  Rf7 {[%clk 0:01:08]} 37. Qg6+ {[%clk 0:00:13]}  Ng7 {[%clk 0:01:09]} 38. h4 {[%clk 0:00:13]}  Rf8 {[%clk 0:01:03]} 39. Bc5 {[%clk 0:00:09]}  Qf7 {[%clk 0:01:03]} 40. Qg4 {[%clk 0:00:08]}  Rd8 {[%clk 0:01:01]} 41. Bb6 {[%clk 0:00:07]}  Rd3 {[%clk 0:00:58]} 42. Bxa5 {[%clk 0:00:07]}  Qh5 {[%clk 0:00:57]} 43. Qc8+ {[%clk 0:00:07]}  Kh7 {[%clk 0:00:56]} 0-1


[Site "https://www.chess.com"]